bitfinex/quotes_ETHUSD_20241018
["timestamp","ask_amount","ask_price","bid_price","bid_amount"]
[1729266381639,0.39122946,2660.8,2658.9,0.521]
[1729266381803,0.39122946,2660.8,2659.1,0.521]
[1729266383902,0.50393251,2660.8,2659.1,0.521]
[1729266384104,0.50393251,2660.8,2659.3,0.521]
[1729266384361,0.50393251,2660.8,2659.5,0.521]
[1729266384362,0.11270305,2660.8,2659.5,0.521]
[1729266384643,0.39112401,2660.8,2659.7,0.521]
[1729266384947,0.39112401,2660.8,2659.9,0.521]
[1729266385149,0.39112401,2660.8,2660.0,0.521]
[1729266385348,4.53915,2661.9,2660.0,0.521]
[1729266385549,0.39110826,2660.9,2660.0,0.521]
[1729266385747,0.521,2661.2,2660.0,0.521]
[1729266385908,0.39113431,2660.9,2660.0,0.291]
[1729266387158,0.39113431,2660.9,2660.0,1e-08]
[1729266388828,0.50267517,2660.9,2660.0,1e-08]
[1729266390755,4.18433452,2660.8,2660.0,1e-08]
[1729266391115,3.75841,2660.7,2660.0,1e-08]
[1729266391510,0.42607452,2660.8,2660.0,1e-08]
[1729266391958,4.18434452,2660.8,2660.0,1e-08]
[1729266392253,0.42607452,2660.8,2660.0,1e-08]
[1729266392616,0.54654693,2660.7,2660.0,1e-08]
[1729266393416,0.42607452,2660.8,2660.0,1e-08]
[1729266393641,0.50267517,2660.9,2660.0,1e-08]
[1729266394144,0.50267517,2660.9,2659.0,0.47093359]
[1729266394353,0.50267517,2660.9,2659.0,8.55424151]
[1729266394957,0.50267517,2660.9,2659.1,0.43530792]
[1729266395475,0.50267517,2660.9,2659.1,0.90624151]
[1729266395675,0.50267517,2660.9,2659.3,0.3772]
[1729266395864,0.50267517,2660.9,2659.4,0.43530792]
[1729266397548,0.50267517,2660.9,2659.4,0.90624151]
[1729266398068,0.50267517,2660.9,2659.4,0.43530792]
[1729266398955,0.50267517,2660.9,2659.3,6.6572]
[1729266399646,0.77858959,2660.7,2658.3,7.41]
[1729266399849,1.41313355,2660.5,2658.4,7.652]
[1729266400050,2.19172314,2660.5,2658.4,8.11621057]
[1729266400251,1.16949721,2660.4,2658.4,8.11621057]
[1729266400490,0.77858959,2660.3,2658.4,8.11621057]
[1729266400649,0.77858959,2660.3,2658.5,0.3772]
[1729266400849,0.23373816,2660.2,2658.5,0.3772]
[1729266401054,0.23373816,2660.2,2658.5,0.84141057]
[1729266401498,0.23373816,2660.2,2658.5,0.46421057]
[1729266401793,1.01232775,2660.2,2658.5,0.46421057]
[1729266401998,0.23373816,2660.2,2658.4,7.652]
[1729266402288,1.01232775,2660.2,2658.4,7.652]
[1729266402496,0.77858959,2660.1,2658.4,7.652]
[1729266402661,0.21802121,2660.1,2658.5,0.46421057]
[1729266403079,1.01232775,2660.2,2658.5,0.46421057]
[1729266403560,0.77858959,2660.1,2658.5,0.46421057]
[1729266404108,0.77858959,2660.1,2658.4,7.652]
[1729266404252,0.77858959,2660.0,2658.4,7.652]
[1729266404452,0.77858959,2659.9,2658.4,7.652]
[1729266404699,0.1946474,2659.8,2658.4,7.652]
[1729266405055,0.97323699,2659.8,2658.4,7.652]
[1729266405391,0.97323699,2659.8,2658.1,0.3772]
[1729266405392,0.77858959,2659.7,2657.7,0.39979485]
[1729266405592,0.77858959,2659.7,2657.7,8.05779485]
[1729266405792,0.77858959,2659.7,2657.7,8.0352]
[1729266406106,0.77858959,2659.6,2657.7,8.0352]
[1729266406456,0.1946474,2659.8,2657.7,8.0352]
[1729266406753,0.1946474,2659.8,2657.8,0.46421057]
[1729266406989,0.60163355,2660.0,2657.8,0.46421057]
[1729266407365,0.78355433,2659.4,2657.8,0.46421057]
[1729266407779,0.78355433,2659.5,2657.8,0.46421057]
[1729266408186,0.78355433,2659.5,2657.7,7.658]
[1729266408403,0.78355433,2659.4,2657.7,7.658]
[1729266408606,0.19588858,2659.3,2657.7,7.658]
[1729266408767,0.19588858,2659.3,2657.8,0.46421057]
[1729266409189,0.78355433,2659.4,2657.8,0.46421057]
[1729266409569,0.78355433,2659.5,2657.8,0.90898665]
[1729266409767,0.78355433,2659.5,2657.9,0.44477608]
[1729266410081,0.78355433,2659.6,2658.0,0.46421057]
[1729266410287,0.19588858,2659.6,2658.0,0.46421057]
[1729266410594,0.39099549,2659.5,2657.7,8.12221057]
[1729266411206,0.39099549,2659.5,2657.8,0.46421057]
[1729266411402,0.39099549,2659.5,2657.8,0.90898665]
[1729266412426,1.80084682,2660.2,2657.8,0.90898665]
[1729266412427,0.78355433,2660.3,2657.9,0.32966847]
[1729266412578,1.17533149,2660.4,2658.0,6.75221057]
[1729266412579,0.97944291,2660.2,2658.0,6.75221057]
[1729266412766,0.39088163,2660.1,2658.0,7.19698665]
[1729266413388,0.39088163,2660.1,2658.1,1.8113762]
[1729266413600,0.39088163,2660.1,2658.2,2.78588136]
[1729266413873,0.39088163,2660.1,2658.3,9.5225086]
[1729266414095,0.78355433,2660.7,2658.4,0.90898665]
[1729266414308,0.3907808,2660.8,2658.5,2.19262901]
[1729266414498,0.63692227,2660.8,2658.6,9.08016701]
[1729266414699,1.4204766,2660.8,2658.6,7.52665512]
[1729266415572,0.78355433,2660.7,2658.6,7.52665512]
[1729266415880,1.4204766,2660.8,2658.6,7.52665512]
[1729266416205,0.78355433,2660.7,2658.6,6.75221057]
[1729266416416,1.04313514,2660.7,2658.6,6.288]
[1729266416615,0.78355433,2660.6,2658.6,6.288]
[1729266417107,0.78355433,2660.4,2658.6,6.288]
[1729266417510,0.78355433,2660.4,2658.7,0.46421057]
[1729266417817,0.78355433,2660.5,2658.7,0.46421057]
[1729266417976,1.00540099,2660.5,2658.7,0.46421057]
[1729266418488,1.00540099,2660.5,2658.6,6.288]
[1729266418813,0.78355433,2660.4,2658.6,6.288]
[1729266419320,0.78355433,2660.3,2658.6,6.288]
[1729266419618,1.39717815,2660.5,2658.6,6.288]
[1729266419619,0.78355433,2660.2,2658.6,6.288]
[1729266419979,0.19588858,2660.1,2658.6,6.288]
[1729266420371,0.97944291,2660.1,2658.6,6.288]
[1729266421063,0.78355433,2660.0,2658.5,7.652]
[1729266421231,0.78355433,2659.8,2658.5,7.652]
[1729266422121,0.78355433,2659.7,2658.5,7.652]
[1729266422287,0.78355433,2659.6,2658.3,7.41]
[1729266422489,0.78355433,2659.5,2657.9,7.658]
[1729266422816,0.78355433,2659.4,2657.9,7.658]
[1729266423022,0.78355433,2659.2,2657.9,7.658]
[1729266423177,0.78355433,2659.1,2657.9,7.658]
[1729266423375,0.78355433,2659.1,2657.2,2.449]
[1729266423578,0.78355433,2659.0,2657.3,8.12621057]
[1729266423794,0.97944291,2658.9,2657.3,8.12621057]
[1729266424018,0.78355433,2658.8,2657.3,7.662]
[1729266424219,0.78355433,2658.5,2657.1,7.41]
[1729266424422,0.78355433,2658.5,2656.7,12.91942599]
[1729266424423,0.78355433,2658.3,2656.7,7.668]
[1729266424626,0.78355433,2658.2,2656.7,7.668]
[1729266424849,0.78355433,2658.1,2656.7,7.668]
[1729266425012,0.78355433,2658.1,2656.4,6.87898458]
[1729266425013,1.53935433,2658.1,2656.4,0.58498458]
[1729266425221,0.78355433,2657.5,2656.4,0.58498458]
[1729266425548,1.17533149,2657.7,2656.4,0.58498458]
[1729266425549,0.78355433,2657.7,2656.4,0.58498458]
[1729266425895,0.78355433,2657.7,2656.2,0.44477608]
[1729266426100,0.97944291,2657.6,2656.2,0.44477608]
[1729266426299,0.78355433,2657.9,2656.3,0.46421057]
[1729266426520,0.78355433,2658.0,2656.4,0.44477608]
[1729266426735,0.7558,2658.1,2656.4,0.44477608]
[1729266427046,0.39077184,2658.4,2656.5,0.46421057]
[1729266427214,0.39077184,2658.4,2656.6,0.44477608]
[1729266427412,0.58443446,2658.4,2656.6,0.44477608]
[1729266427726,0.58443446,2658.4,2656.7,0.46421057]
[1729266427927,0.39077184,2658.4,2656.8,0.44477608]
[1729266428127,0.39077184,2658.4,2656.9,8.14021057]
[1729266428313,0.39077184,2658.4,2657.0,6.74277608]
[1729266428515,0.39077184,2658.4,2657.1,0.46421057]
[1729266428718,0.39077184,2658.4,2657.2,0.44477608]
[1729266429046,0.39077184,2658.4,2657.3,0.46421057]
[1729266429248,0.39077184,2658.4,2657.4,0.44477608]
[1729266429400,0.39077184,2658.4,2657.5,8.14021057]
[1729266430040,0.39077184,2658.4,2657.5,7.676]
[1729266430345,0.7644,2659.2,2657.5,7.676]
[1729266430549,0.39045032,2658.7,2657.5,7.676]
[1729266430707,0.7644,2659.2,2657.5,7.676]
[1729266430708,1.54795433,2659.2,2657.5,7.676]
[1729266430903,0.390465,2658.6,2657.5,7.676]
[1729266431308,0.7644,2659.2,2657.6,0.46421057]
[1729266431525,0.39044621,2658.8,2657.5,7.676]
[1729266431926,1.54795433,2659.2,2657.5,7.676]
[1729266432129,0.8052,2658.6,2657.0,6.298]
[1729266432542,0.8052,2658.6,2656.5,0.46421057]
[1729266432543,0.39050791,2658.5,2656.5,0.46421057]
[1729266432743,0.8086,2658.4,2656.3,15.08]
[1729266432984,1.59215433,2658.4,2656.3,7.67]
[1729266433134,0.78355433,2658.3,2656.3,7.67]
[1729266433335,0.8086,2658.1,2656.3,7.67]
[1729266433650,0.8037,2658.0,2656.3,7.67]
[1729266433971,0.8037,2657.9,2655.9,0.02259485]
[1729266434130,0.8037,2657.8,2655.7,7.88386358]
[1729266434330,0.8037,2657.8,2655.7,0.47386358]
[1729266434727,0.8037,2657.8,2655.8,0.46421057]
[1729266434934,0.8037,2657.8,2655.9,0.47386358]
[1729266435371,0.8037,2657.8,2655.5,7.678]
[1729266435372,0.8037,2657.8,2655.8,0.46421057]
[1729266435555,0.8037,2657.8,2655.5,8.15186358]
[1729266435739,0.8037,2657.7,2655.6,0.47386358]
[1729266436335,0.8037,2657.7,2655.7,0.46421057]
[1729266436533,0.8037,2657.7,2655.8,0.47386358]
[1729266436980,0.8037,2657.7,2655.5,7.678]
[1729266437178,0.8037,2657.6,2655.6,0.47386358]
[1729266437344,0.8037,2657.5,2655.2,7.41]
[1729266437557,0.8037,2657.3,2655.2,7.85386358]
[1729266438773,0.7556,2657.2,2655.0,0.44386358]
[1729266438967,0.7556,2657.2,2655.2,0.44386358]
[1729266439236,0.7556,2657.2,2655.3,0.46421057]
[1729266440247,0.7556,2657.2,2654.8,7.5401852]
[1729266440459,0.7556,2657.2,2654.8,8.00439577]
[1729266440654,0.788,2657.0,2654.8,8.00439577]
[1729266440869,0.788,2657.0,2654.9,0.46421057]
[1729266441184,0.788,2657.0,2654.9,0.90807415]
[1729266441975,0.788,2657.0,2654.8,0.1301852]
[1729266442880,0.8112,2656.8,2654.8,0.1301852]
[1729266446292,0.822,2656.8,2654.8,0.1301852]
[1729266450583,0.822,2656.8,2654.9,0.85057416]
[1729266450789,0.822,2656.8,2654.9,1.18024263]
[1729266451185,0.822,2656.8,2654.9,0.43504391]
[1729266451385,0.822,2656.8,2655.0,0.43504391]
[1729266451776,0.822,2656.8,2655.1,0.41553025]
[1729266451993,0.822,2656.8,2655.1,0.85057416]
[1729266452158,0.822,2656.8,2655.1,0.43504391]
[1729266453909,0.822,2656.8,2654.9,0.32966847]
[1729266454265,0.822,2656.8,2654.8,0.1301852]
[1729266454906,0.822,2656.8,2654.8,2.42300636]
[1729266455094,0.822,2656.8,2654.9,0.43504391]
[1729266455308,0.822,2656.8,2655.0,1.80238877]
[1729266455601,0.06541499,2658.3,2654.9,0.85057416]
[1729266455602,0.7874,2657.2,2655.2,1.885042]
[1729266455801,0.7874,2657.9,2655.4,1.8482497]
[1729266456107,0.7874,2657.9,2655.7,1.82765354]
[1729266456294,0.7874,2657.9,2655.6,7.41]
[1729266456495,0.827,2657.7,2655.6,7.41]
[1729266458163,0.827,2657.7,2655.7,0.43504391]
[1729266458414,0.827,2657.7,2655.8,0.3772]
[1729266458577,0.827,2657.7,2655.9,13.988]
[1729266458805,0.827,2657.7,2656.0,1.89885915]
[1729266459113,0.39029853,2657.8,2656.0,1.18024263]
[1729266459312,0.7672,2658.0,2656.2,1.8835033]
[1729266459484,0.7672,2658.0,2656.4,1.87344034]
[1729266459689,0.7672,2658.0,2656.5,13.988]
[1729266459931,0.7672,2658.0,2656.5,16.27381773]
[1729266460090,0.7672,2658.5,2656.7,1.81229016]
[1729266460294,0.7672,2658.5,2656.6,1.82666506]
[1729266460489,0.7672,2658.5,2656.5,14.31766847]
[1729266460734,0.7672,2658.5,2656.6,2.26170897]
[1729266460916,0.7672,2658.5,2656.7,2.18949016]
[1729266461492,0.7672,2658.5,2656.7,0.3772]
[1729266462029,0.7672,2658.5,2656.6,0.3772]
[1729266462420,0.7672,2658.5,2656.5,14.31766847]
[1729266462604,0.7672,2658.5,2656.5,13.988]
[1729266462931,0.7672,2658.5,2656.5,14.42304391]
[1729266463232,0.7672,2658.5,2656.6,0.43504391]
[1729266463814,0.7672,2658.5,2656.7,1.81229016]
[1729266464015,0.41279076,2658.9,2656.7,1.81229016]
[1729266464016,0.8086,2658.8,2656.8,0.43504391]
[1729266464313,0.8086,2658.8,2657.0,1.85397289]
[1729266464529,0.8086,2658.8,2656.9,0.41553025]
[1729266464530,0.8086,2658.8,2657.1,13.988]
[1729266464728,0.8086,2658.8,2657.2,1.81158785]
[1729266464962,0.8086,2658.8,2657.1,13.988]
[1729266466812,0.8086,2658.8,2657.2,0.43504391]
[1729266467244,0.8086,2658.8,2657.2,0.85057416]
[1729266467556,0.8086,2658.8,2657.4,1.84737132]
[1729266468160,0.8086,2658.8,2657.4,2.28241523]
[1729266468363,0.77,2659.7,2657.8,1.85980369]
[1729266468566,0.77,2659.7,2657.9,15.79272717]
[1729266470327,0.77,2659.7,2657.9,13.988]
[1729266471666,0.77,2659.7,2658.0,0.43504391]
[1729266471851,0.77,2659.7,2658.0,4.40004391]
[1729266472059,0.77,2659.7,2658.2,5.84189471]
[1729266472227,0.77,2659.7,2658.4,1.88409698]
[1729266472424,0.77,2659.7,2658.5,14.0512953]
[1729266472675,0.77,2659.7,2658.5,13.988]
[1729266474765,0.77,2659.7,2658.9,0.1]
[1729266489120,0.77,2659.7,2659.0,6.282]
[1729266489423,0.02259485,2660.4,2659.1,8.028]
[1729266489424,0.8059,2660.1,2659.1,8.028]
[1729266489629,0.8059,2660.1,2659.2,0.82249275]
[1729266490024,0.8059,2660.1,2659.2,2.72369275]
[1729266490427,0.8059,2660.1,2659.2,2.34769275]
[1729266490920,0.8059,2660.1,2659.2,1.9012]
[1729266499935,0.39028294,2660.0,2659.2,1.9012]
[1729266500173,0.7508,2659.9,2659.2,1.9012]
[1729266503145,0.7508,2659.9,2659.2,1.0679]
[1729266503347,0.7692,2659.8,2659.2,0.2346]
[1729266503547,0.7692,2659.6,2658.9,0.1]
[1729266503745,0.77861773,2659.5,2658.9,0.1]
[1729266503950,0.8013,2659.4,2658.9,0.1]
[1729266504361,1.57991773,2659.3,2658.9,0.1]
[1729266504676,0.778,2659.1,2658.9,0.1]
[1729266504908,0.778,2659.0,2658.9,0.1]
[1729266505383,1.55661773,2659.0,2658.9,0.1]
[1729266505729,0.778,2659.0,2658.9,0.1]
[1729266506741,0.77861773,2659.7,2658.9,0.98153666]
[1729266506742,0.8001,2659.7,2658.9,0.98153666]
[1729266506969,0.8001,2659.7,2658.9,0.54649275]
[1729266507176,0.8001,2659.7,2658.9,0.1]
[1729266510375,0.8175,2659.6,2658.9,0.1]
[1729266510683,0.7519,2659.4,2658.9,0.1]
[1729266511313,0.7519,2659.3,2658.9,0.1]
[1729266511481,1.53051773,2659.3,2658.9,0.1]
[1729266511681,0.7519,2659.1,2658.9,0.1]
[1729266512412,1.53051773,2659.0,2658.9,0.1]
[1729266512577,0.7519,2659.0,2658.9,0.1]
[1729266515702,0.8032,2659.4,2658.9,0.1]
[1729266517316,0.805,2659.7,2658.9,0.8694]
[1729266517515,0.805,2659.7,2658.9,0.1]
[1729266518219,0.82,2659.5,2658.9,0.1]
[1729266519028,1.59861773,2659.5,2658.9,0.1]
[1729266519344,0.82,2659.3,2658.9,0.1]
[1729266519776,1.59861773,2659.3,2658.9,0.1]
[1729266519981,0.82,2659.3,2658.9,0.1]
[1729266520597,0.38999091,2659.2,2658.9,0.1]
[1729266521585,0.7882,2659.1,2658.9,0.1]
[1729266521783,1.76249859,2659.0,2658.9,0.1]
[1729266522383,1.76936502,2659.0,2658.9,0.1]
[1729266523025,1.76926435,2659.0,2658.9,0.1]
[1729266523182,1.76926088,2659.0,2658.9,0.1]
[1729266523981,0.98388086,2659.0,2658.9,0.1]
[1729266524186,2.15180746,2659.0,2658.9,0.1]
[1729266525890,2.15180746,2659.0,2657.2,7.41]
[1729266525891,0.8156,2658.9,2657.2,7.41]
[1729266526085,0.8156,2658.9,2656.8,12.39]
[1729266526086,1.53523818,2658.6,2656.8,7.41]
[1729266526483,0.7502,2658.6,2657.4,0.8205]
[1729266526641,0.7502,2658.6,2657.4,1.26699275]
[1729266528390,0.7502,2658.6,2657.4,0.8205]
[1729266529938,0.7502,2658.6,2657.0,0.8093]
[1729266530144,0.8311,2658.5,2657.0,0.8093]
[1729266530350,0.8311,2658.4,2657.0,0.8093]
[1729266531154,0.8311,2658.2,2656.8,7.41]
[1729266531451,0.8311,2658.2,2656.4,0.87468638]
[1729266531452,0.8311,2658.2,2656.4,8.2193]
[1729266531623,0.8311,2658.2,2656.9,0.4]
[1729266531822,0.8078,2658.1,2656.9,0.4]
[1729266532038,0.78503818,2658.1,2656.9,0.4]
[1729266532259,0.8078,2658.0,2656.9,0.4]
[1729266532616,0.8078,2657.8,2656.2,0.8262]
[1729266532826,0.8078,2657.7,2656.4,0.4]
[1729266533238,0.8078,2657.6,2656.4,0.4]
[1729266533949,1.59283818,2657.6,2656.4,0.4]
[1729266534275,0.7648,2657.4,2656.4,0.4]
[1729266534564,0.7648,2657.3,2655.9,0.44649275]
[1729266534770,0.7648,2657.3,2656.0,0.4]
[1729266535341,0.7648,2657.3,2656.0,0.84649275]
[1729266536584,0.7648,2657.3,2656.0,0.4]
[1729266541348,0.7867,2657.1,2656.0,0.4]
[1729266541933,0.7867,2657.1,2656.0,1.62319275]
[1729266542184,0.7867,2657.1,2656.1,0.44649275]
[1729266542471,0.7867,2657.1,2656.3,0.02]
[1729266544070,0.39012817,2657.2,2656.4,0.8095]
[1729266544280,0.7897,2657.4,2656.5,0.02]
[1729266546687,0.7897,2657.4,2656.6,0.4753277]
[1729266546892,0.7897,2657.4,2656.7,0.02]
[1729266551216,0.19625955,2658.5,2656.7,0.02]
[1729266551217,0.7623,2658.0,2656.8,1.26112496]
[1729266551362,0.7541,2658.7,2657.0,0.7515]
[1729266551569,1.14415054,2658.7,2657.2,0.7515]
[1729266551890,1.14415054,2658.7,2657.3,0.49562113]
[1729266552096,1.14415054,2658.7,2657.4,0.7515]
[1729266552249,0.7541,2658.7,2657.4,0.7515]
[1729266552450,0.7541,2658.7,2657.5,1.2268277]
[1729266552676,0.7541,2658.7,2657.5,0.4753277]
[1729266552677,0.75210261,2658.7,2657.5,0.4753277]
[1729266552885,0.75210261,2658.7,2657.6,0.7677]
[1729266554989,0.75210261,2658.7,2657.6,1.2430277]
[1729266555146,0.75210261,2658.7,2657.6,0.7677]
[1729266555350,0.39027571,2659.2,2657.6,0.7677]
[1729266555558,0.39027571,2659.2,2657.8,0.7681]
[1729266555788,0.817,2659.1,2657.8,0.7681]
[1729266557173,0.817,2659.1,2657.3,4.172]
[1729266557456,0.817,2659.1,2657.5,0.8236]
[1729266557682,0.817,2659.1,2657.5,1.2989277]
[1729266558702,0.817,2659.1,2657.6,0.4753277]
[1729266558852,0.817,2659.1,2657.6,0.91027941]
[1729266559052,0.817,2659.1,2657.5,0.8236]
[1729266560493,0.817,2659.1,2657.6,0.91027941]
[1729266560813,0.817,2659.1,2657.8,0.8156]
[1729266561016,0.817,2659.1,2657.8,1.25055171]
[1729266561171,1.20731643,2659.1,2657.8,0.8156]
[1729266562671,1.20731643,2659.1,2657.9,0.4753277]
[1729266563076,0.8066,2659.0,2657.7,7.674]
[1729266563286,0.8066,2659.0,2657.8,1.2761277]
[1729266563485,0.8066,2659.0,2657.8,1.71107941]
[1729266563685,0.8066,2659.0,2657.9,0.43495171]
[1729266563897,0.39031643,2659.1,2657.9,0.43495171]
[1729266563898,0.39031643,2659.1,2658.2,0.8008]
[1729266564137,0.7531,2660.4,2658.4,0.8008]
[1729266564396,0.7531,2660.0,2658.4,0.8008]
[1729266564605,0.7531,2660.0,2658.5,0.752]
[1729266564868,0.7531,2660.0,2658.4,0.8008]
[1729266565304,0.7531,2660.0,2658.3,7.674]
[1729266565503,0.7531,2660.0,2658.5,0.43495171]
[1729266565703,0.7531,2660.0,2658.6,0.7806]
[1729266566668,0.7531,2660.0,2658.3,7.674]
[1729266566865,0.7531,2660.0,2658.4,0.4753277]
[1729266567104,0.7531,2660.0,2658.4,0.91027941]
[1729266568271,0.7531,2660.0,2658.5,0.8197]
[1729266569968,0.7531,2660.0,2658.3,7.674]
[1729266570399,0.7531,2660.0,2658.1,10.83]
[1729266571419,0.8126,2660.0,2658.1,11.3053277]
[1729266571775,0.8126,2660.0,2658.2,0.4753277]
[1729266572169,0.8126,2660.0,2658.1,10.83]
[1729266572813,0.8126,2660.0,2658.1,3.42]
[1729266573015,0.7833,2659.8,2658.1,3.42]
[1729266573324,0.7833,2659.8,2657.7,7.658]
[1729266573490,0.7833,2659.8,2658.0,0.4753277]
[1729266573821,0.7833,2659.8,2657.7,7.658]
[1729266574618,0.8234,2659.6,2657.8,1.6549024]
[1729266574787,0.8234,2659.6,2657.7,7.658]
[1729266574989,0.8234,2659.6,2657.8,0.02080427]
[1729266575190,0.8234,2659.6,2657.7,7.658]
[1729266576124,0.8234,2659.6,2657.6,7.41]
[1729266576702,0.8234,2659.6,2657.7,0.43495171]
[1729266576903,0.8234,2659.6,2657.6,7.41]
[1729266579416,0.7798,2659.5,2657.7,0.88436274]
[1729266580289,0.7798,2659.5,2657.7,8.54836274]
[1729266580520,0.7798,2659.5,2657.7,8.87803121]
[1729266581096,0.7798,2659.5,2657.7,7.664]
[1729266584995,0.8203,2659.3,2657.7,7.664]
[1729266585925,0.8203,2659.3,2657.6,7.41]
[1729266586137,0.8203,2659.3,2657.4,3.76]
[1729266586337,0.8253,2659.2,2657.4,3.76]
[1729266586574,0.8253,2659.2,2657.3,3.41]
[1729266586837,0.8201,2659.0,2656.9,8.61079247]
[1729266587134,0.8201,2658.9,2656.9,0.94479247]
[1729266587293,0.8201,2658.8,2656.9,0.94479247]
[1729266587488,0.8201,2658.8,2656.9,1.24436274]
[1729266587789,0.8201,2658.8,2657.0,0.43495171]
[1729266590025,0.8201,2658.8,2656.9,0.36]
[1729266590393,0.8201,2658.8,2656.9,0.79495171]
[1729266590603,0.7823,2658.7,2657.1,1.1802]
[1729266590901,0.7823,2658.7,2657.2,1.21403121]
[1729266591092,0.7823,2658.7,2657.5,0.8042]
[1729266591296,0.7823,2658.7,2657.6,8.81062018]
[1729266591800,0.7823,2658.7,2657.6,8.43462018]
[1729266592017,0.7823,2658.7,2657.6,7.99966847]
[1729266592823,0.7823,2658.7,2657.6,7.67]
[1729266594245,0.7823,2658.7,2657.7,0.43495171]
[1729266594743,0.7823,2658.7,2657.6,7.67]
[1729266595880,0.7823,2658.7,2657.6,8.10495171]
[1729266596605,0.7823,2658.7,2657.6,7.67]
[1729266598156,0.7823,2658.7,2657.6,8.10495171]
[1729266598355,0.7823,2658.7,2657.7,0.376]
[1729266599993,0.7823,2658.7,2657.8,1.1805]
[1729266601386,0.7823,2658.7,2657.8,0.8045]
[1729266601595,0.7823,2658.7,2657.6,0.376]
[1729266601844,0.7823,2658.7,2657.5,7.66]
[1729266602656,1.05678955,2658.7,2657.5,7.66]
[1729266602825,0.8226,2658.6,2657.5,8.47095171]
[1729266603165,0.8226,2658.6,2657.6,0.43495171]
[1729266603309,0.8226,2658.6,2657.6,3.51736274]
[1729266603513,0.8226,2658.6,2657.6,1.26036274]
[1729266603741,0.8226,2658.6,2657.6,3.51736274]
[1729266604612,0.8226,2658.6,2657.6,1.26036274]
[1729266604909,0.8226,2658.6,2657.6,0.376]
[1729266605357,0.8226,2658.6,2657.6,0.81095171]
[1729266605924,0.8226,2658.6,2657.6,0.376]
[1729266606824,0.8226,2658.6,2657.6,0.81095171]
[1729266607124,0.8226,2658.6,2657.6,0.376]
[1729266609662,0.8226,2658.6,2657.5,7.66]
[1729266612369,0.8226,2658.6,2657.5,8.09495171]
[1729266612866,0.8226,2658.6,2657.6,0.43495171]
[1729266614279,0.8226,2658.6,2657.5,7.66]
[1729266614631,0.8226,2658.6,2657.6,0.43495171]
[1729266615226,0.8226,2658.6,2657.7,0.8161]
[1729266615467,0.8226,2658.6,2657.9,2.257]
[1729266615778,0.8226,2658.6,2657.9,2.70641103]
[1729266615931,0.8213,2659.4,2658.0,0.88436274]
[1729266616249,0.8213,2659.4,2658.2,0.8129]
[1729266616457,0.8213,2659.4,2658.3,0.43495171]
[1729266616653,0.8213,2659.4,2658.3,0.88436274]
[1729266617478,0.8213,2659.4,2658.3,0.43495171]
[1729266617684,0.8213,2659.4,2658.2,0.8129]
[1729266618007,0.8213,2659.4,2658.1,7.66]
[1729266618566,0.8213,2659.4,2658.2,0.376]
[1729266619203,0.8213,2659.4,2658.3,2.257]
[1729266619410,0.8213,2659.4,2658.2,0.376]
[1729266619626,0.8213,2659.4,2658.5,0.376]
[1729266620109,0.8213,2659.4,2658.6,0.81095171]
[1729266620477,0.8213,2659.4,2658.6,0.376]
[1729266620909,0.8213,2659.4,2658.4,1.1444]
[1729266621685,0.8213,2659.4,2658.2,0.376]
[1729266622626,0.8213,2659.4,2658.3,0.81095171]
[1729266622945,0.8213,2659.4,2658.3,0.376]
[1729266623681,0.8213,2659.4,2658.5,0.376]
[1729266623922,0.38979326,2659.8,2658.6,1.26036274]
[1729266624121,0.02259485,2660.8,2658.6,1.26036274]
[1729266624347,0.38965763,2660.3,2658.7,7.41]
[1729266624548,3.86291725,2661.1,2658.7,7.41]
[1729266624845,0.38963946,2660.3,2658.7,7.41]
[1729266625051,3.86291725,2661.1,2658.7,7.41]
[1729266625254,0.3896426,2660.3,2658.7,7.41]
[1729266625414,3.86291725,2661.1,2658.7,7.41]
[1729266625816,0.3896426,2660.2,2658.7,7.41]
[1729266626132,3.86291725,2661.1,2658.7,7.41]
[1729266626339,0.3896312,2660.1,2658.7,7.41]
[1729266626532,7.62078725,2661.1,2658.7,7.41]
[1729266626533,3.86291725,2661.1,2658.7,7.41]
[1729266626719,0.38961097,2660.0,2658.4,0.376]
[1729266626924,0.753,2659.9,2658.4,0.376]
[1729266627342,0.753,2659.9,2658.5,0.43495171]
[1729266628753,0.753,2659.9,2658.2,7.41]
[1729266628956,0.7769,2659.7,2658.2,7.41]
[1729266629722,0.7769,2659.7,2658.2,7.85941103]
[1729266629923,0.7769,2659.7,2658.3,0.88436274]
[1729266631854,0.7769,2659.7,2658.3,1.24128121]
[1729266632057,0.7769,2659.7,2658.3,0.79187018]
[1729266632584,0.7769,2659.7,2658.3,0.35691847]
[1729266633981,0.7769,2659.7,2658.4,0.43495171]
[1729266634548,0.7769,2659.7,2658.5,0.45849437]
[1729266634782,0.7769,2659.7,2658.6,0.43495171]
[1729266634966,0.7769,2659.7,2658.7,8.11849437]
[1729266635165,0.7769,2659.7,2658.8,0.80887018]
[1729266635388,0.7769,2659.7,2658.9,1.25009437]
[1729266635563,0.7769,2659.7,2659.0,0.45619556]
[1729266635751,0.7769,2659.7,2659.0,0.83011403]
[1729266636346,0.7769,2659.7,2659.0,0.80887018]
[1729266636547,0.7769,2659.7,2659.0,0.37391847]
[1729266636978,0.7769,2659.7,2658.7,7.66]
[1729266638098,0.7769,2659.7,2658.7,8.09495171]
[1729266638244,0.7769,2659.7,2658.7,8.46887018]
[1729266638445,0.7769,2659.7,2658.8,0.376]
[1729266638674,0.0672103,2659.7,2658.9,0.7929]
[1729266638876,0.38956876,2660.7,2659.0,3.957]
[1729266639062,0.38956876,2660.7,2658.9,0.80887018]
[1729266639269,0.78530227,2660.5,2658.8,0.376]
[1729266639585,0.98162784,2660.4,2658.8,0.376]
[1729266639784,0.78530227,2660.3,2658.8,0.376]